Cogmind - Beta 13 @@@ ROGUE MODE // 2024.06.04 @ 10:44:18 Player: Falling_Sands Result: Destroyed by D-53 Grenadier with Mini Grenade Launcher Performance ------------- Evolutions (0) 0 Regions Visited (4) 800 Robots Destroyed (22) 110 Value Destroyed (466) 466 Prototype IDs (26) 520 Alien Tech Used (0) 0 Bonus (315) 315 TOTAL SCORE: 2211 Bonus ------- Follower Combat Kills 21 Aligned with FarCom 300 Friendly Fire -6 Cogmind --------- Core Integrity 0/250 Matter 285/300 Energy 59/100 System Corruption 0% Temperature Cool (0) Movement Walking (190) Ox1 Location -9/Mines Parts ------- > --- POWER (1) -------- (None) > --- PROPULSION (2) --- Aluminum Leg Aluminum Leg > --- UTILITY (2) ------ Large Storage Unit > --- WEAPON (2) ------- Light Assault Rifle > --- INVENTORY (15) --- Light Nuclear Core High-capacity Matter Pod (200) Structural Scanner Hardened Light Armor Plating Hardened Light Armor Plating Splice Drone Bay (6/6) Medium Laser Light Assault Rifle Grenade Launcher Grenade Launcher Field Lobotomy Kit (5) Mining Claw Peak State ------------ > --- POWER ------------ Light Ion Engine > --- PROPULSION ------- Aluminum Leg Aluminum Leg > --- UTILITY ---------- Large Storage Unit Hardened Light Armor Plating > --- WEAPON ----------- Guided Plasma Cannon Light Assault Rifle > --- INVENTORY -------- Light Nuclear Core Aluminum Leg Aluminum Leg Aluminum Leg Aluminum Leg Medium Storage Unit Medium Matter Pod High-capacity Matter Pod Hardened Light Armor Plating Splice Drone Bay EM Pulse Gun Medium Laser Grenade Launcher Grenade Launcher Mining Claw [Rating: 17] Favorites ----------- Power Light Ion Engine Engine Light Ion Engine Propulsion Aluminum Leg Treads Light Treads Leg Aluminum Leg Utility Large Storage Unit Device Seismic Detector Storage Large Storage Unit Protection Hardened Light Armor Plating Weapon Light Assault Rifle Energy Gun Particle Gun Energy Cannon Guided Plasma Cannon Ballistic Gun Light Assault Rifle Launcher Grenade Launcher Build | -11 -10 -10 -10 -9 ------- Run | Yrd Mat Min Exi Min Slots Evolved . | . . . . . Power . | . . . . . Propulsion . | . . . . . Utility . | . . . . . Weapon . | . . . . . Parts Attached 37 | 9 5 12 2 9 Power 3 | 1 1 1 . . Engine 3 | 1 1 1 . . Core . | . . . . . Reactor . | . . . . . Propulsion 15 | 4 . 5 . 6 Treads 2 | 2 . . . . Leg 13 | 2 . 5 . 6 Wheel . | . . . . . Hover . | . . . . . Flight . | . . . . . Utility 8 | 2 2 3 . 1 Device 3 | 1 . 1 . 1 Storage 3 | 1 2 . . . Processor . | . . . . . Hackware . | . . . . . Protection 2 | . . 2 . . Artifact . | . . . . . Weapon 11 | 2 2 3 2 2 Energy Gun 6 | 1 1 2 1 1 Energy Cannon 1 | . . . 1 . Ballistic Gun 3 | 1 . 1 . 1 Ballistic Cannon . | . . . . . Launcher 1 | . 1 . . . Special Weapon . | . . . . . Impact Weapon . | . . . . . Slashing Weapon . | . . . . . Piercing Weapon . | . . . . . Special Melee Weapon . | . . . . . Unidentified Prototypes 1 | . . 1 . . Parts Lost 11 | . . 3 . 8 Power 2 | . . 1 . 1 Propulsion 4 | . . . . 4 Utility 2 | . . 1 . 1 Weapon 3 | . . 1 . 2 Highest Loss Streak 6 | . . 2 . 6 To Critical Strikes . | . . . . . Average Slot Usage (%) 99 | . 100 99 99 98 Engine 13 | . 14 14 14 13 Leg 27 | . 28 28 28 27 Device 7 | . 14 4 . 12 Storage 14 | . 14 14 14 14 Protection 7 | . . 9 14 1 Energy Gun 15 | . 14 16 13 18 Ballistic Gun 12 | . 14 10 14 8 Naked Turns . | . . . . . Heaviest Build 35 | 14 29 35 32 32 Greatest Support 40 | 40 20 20 20 20 Greatest Overweight (x) 1 | . 1 1 1 1 Average Overweight (x) . | . . 1 1 1 Largest Inventory Capacity 15 | 8 15 15 15 15 Average Capacity 14 | 7 12 15 15 15 Most Carried 15 | 3 13 15 15 15 Average Carried 12 | 2 9 14 14 14 Final Capacity 15 | 8 15 15 15 15 Final Carried 15 | 3 13 15 15 12 Class Distribution -------------------- 83% | Mutant 16% | Scavenger-Mutant Dominant Class ---------------- Mutant | -10/Materials Mutant | -10/Mines Mutant | -10/Exiles Scavenger-Mutant | -9/Mines Resources | -11 -10 -10 -10 -9 ----------- Run | Yrd Mat Min Exi Min Matter Collected 889 | 295 385 126 10 73 Remotely . | . . . . . Salvage Created 840 | 104 310 314 . 112 Parts 47 | 7 23 10 . 7 Haulers Intercepted 1 | . 1 . . . Recyclers Shooed . | . . . . . Parts Field Recycled . | . . . . . Retrieved Matter . | . . . . . Parts Self-Destructed . | . . . . . Prevented . | . . . . . Kills | -11 -10 -10 -10 -9 ------- Run | Yrd Mat Min Exi Min Combat Hostiles Destroyed 13 | . 6 4 . 3 Guns 13 | . 6 4 . 3 Classes Destroyed 8 | 2 4 1 . 1 Worker 1 | . . 1 . . Tunneler 3 | 2 1 . . . Hauler 1 | . 1 . . . Recycler 2 | 1 . 1 . . Watcher 2 | . 2 . . . Swarmer 3 | . 3 . . . Grunt 9 | . 3 4 . 2 Brawler 1 | . . . . 1 Best Kill Streak 3 | 3 3 2 . 2 Combat Bots Only 3 | . 3 2 . 2 Max Kills in Single Turn 1 | 1 1 1 . 1 Gunslinging . | . . . . . Exploded . | . . . . . Melee . | . . . . . Uniques/NPCs Destroyed . | . . . . . Combat | -11 -10 -10 -10 -9 -------- Run | Yrd Mat Min Exi Min Hostile Shots Fired 123 | . 31 44 . 48 Missed 34 | . 12 16 . 6 Damage Taken 1525 | 18 167 389 . 951 Core 267 | 9 22 61 . 175 Absorbed by Shields . | . . . . . Core Remaining (%) 96 | 96 . . . . Volleys Fired 86 | 5 35 31 1 14 Largest 2 | 2 2 2 1 2 Hottest 120 | 60 60 105 120 105 Shots Fired 168 | 10 70 61 1 26 Gun 167 | 10 70 61 . 26 Cannon 1 | . . . 1 . Launcher . | . . . . . Special . | . . . . . Kinetic 67 | 5 35 16 . 11 Thermal 39 | . . 27 1 11 Explosive . | . . . . . Electromagnetic 62 | 5 35 18 . 4 Robot Hit Streak 11 | 3 6 10 . 11 Robot Miss Streak 8 | 1 8 4 . 2 Penetration Max . | . . . . . Secondary Targets 1 | . . . . 1 Max Gunslinging Chain 1 | . . . . 1 Shots Hit Robots 93 | 6 32 36 . 19 Core Hits 37 | 3 15 12 . 7 Critical Kills . | . . . . . Critical Parts Destroyed . | . . . . . Critical Strikes 3 | . . 1 . 2 Burn 3 | . . 1 . 2 Melee Attacks . | . . . . . Impact . | . . . . . Slashing . | . . . . . Piercing . | . . . . . Sneak Attacks . | . . . . . Combat Hostiles . | . . . . . Follow-up Attacks . | . . . . . Damage Inflicted 1202 | 113 387 469 . 233 Guns 1162 | 73 387 469 . 233 Cannons . | . . . . . Explosions 40 | 40 . . . . Melee . | . . . . . Ramming . | . . . . . Kinetic 266 | 17 99 83 . 67 Thermal 428 | 40 . 244 . 144 Explosive . | . . . . . Electromagnetic 508 | 56 288 142 . 22 Impact . | . . . . . Slashing . | . . . . . Piercing . | . . . . . Highest Corruption . | . . . . . Average Corruption . | . . . . . Corruption Purged . | . . . . . Corruption Blocked . | . . . . . Overload Shots . | . . . . . Overflow Damage . | . . . . . Projectiles . | . . . . . Explosions . | . . . . . Melee . | . . . . . Knockbacks . | . . . . . Impact . | . . . . . Kinetic . | . . . . . Secondary . | . . . . . Self-Inflicted Damage 19 | 19 . . . . Shots 1 | 1 . . . . Rammed . | . . . . . Targets Rammed . | . . . . . Kicked . | . . . . . Crushed . | . . . . . Highest Temperature 355 | 32 60 336 90 355 Average Temperature 101 | 18 24 114 46 200 Received Heat Transfer 465 | . 42 240 . 183 Effects 6 | . . . . 6 Shutdowns 1 | . . . . 1 Interference 5 | . . . . 5 Siege Activations . | . . . . . Robots Corrupted . | . . . . . Combat Hostiles . | . . . . . Parts Fried . | . . . . . Impact Corruptions . | . . . . . Robots Melted . | . . . . . Combat Hostiles . | . . . . . Parts Melted 2 | . . 1 . 1 Heat Transferred 1210 | 100 . 629 . 481 Parts Sabotaged . | . . . . . Parts Stolen . | . . . . . Parts Stripped . | . . . . . Power Chain Reactions 1 | 1 . . . . Alert | -11 -10 -10 -10 -9 ------- Run | Yrd Mat Min Exi Min Peak Influence 253 | 15 253 120 . 151 Initial 9 | . 9 . . . Average 53 | 5 78 22 . 90 Maximum Alert Level 1 | . 1 . . . Low Security (%) 94 | 100 85 100 . 100 Level 1 5 | . 14 . . . Level 2 . | . . . . . Level 3 . | . . . . . Level 4 . | . . . . . Level 5 . | . . . . . High Security . | . . . . . Max Security . | . . . . . Squads Dispatched 2 | . 2 . . . Investigation 1 | . 1 . . . Extermination . | . . . . . Reinforcement 1 | . 1 . . . Assault . | . . . . . Garrison . | . . . . . Intercept . | . . . . . Searches Triggered . | . . . . . Construction Impeded . | . . . . . Haulers Reinforced . | . . . . . Active Scanning Responses . | . . . . . Cargo Convoy Interrupts . | . . . . . Stealth | -11 -10 -10 -10 -9 --------- Run | Yrd Mat Min Exi Min Distress Signals 2 | . 2 . . . Communications Jammed . | . . . . . Distress Signals . | . . . . . Times Spotted 29 | . 13 8 . 8 Peak Tracking Total 4 | . 4 2 . 3 Tactical Retreats 3 | . . 3 . . Traps | -11 -10 -10 -10 -9 ------- Run | Yrd Mat Min Exi Min Traps Triggered . | . . . . . Indirectly . | . . . . . Trap Hack Attempts . | . . . . . Triggered . | . . . . . Disarmed . | . . . . . Reprogrammed . | . . . . . Reused . | . . . . . Traps Extracted . | . . . . . Installed . | . . . . . Triggered . | . . . . . Machines | -11 -10 -10 -10 -9 ---------- Run | Yrd Mat Min Exi Min Machines Disabled . | . . . . . Max in Single Turn . | . . . . . Machines Repaired . | . . . . . Machines Dismantled . | . . . . . Machines Sabotaged . | . . . . . Overloaded Fab Kills . | . . . . . Hacking | -11 -10 -10 -10 -9 --------- Run | Yrd Mat Min Exi Min Machines Accessed 12 | . 7 1 4 . Terminals 7 | . 7 . . . Fabricators . | . . . . . Repair Stations . | . . . . . Recycling Units . | . . . . . Scanalyzers . | . . . . . Garrison Access . | . . . . . Total Hacks 48 | . 16 1 31 . Successful 43 | . 11 1 31 . Failed 5 | . 5 . . . Catastrophic . | . . . . . Database Lockouts . | . . . . . Manual 6 | . 5 . 1 . Terminals 16 | . 16 . . . Fabricators . | . . . . . Repair Stations . | . . . . . Recycling Units . | . . . . . Scanalyzers . | . . . . . Garrison Access . | . . . . . Terminal Hacks 40 | . 8 1 31 . Record 30 | . . . 30 . Robot Analysis 4 | . 4 . . . Prototype ID Bank 1 | . 1 . . . Open Door 1 | . . 1 . . Locate Traps 1 | . 1 . . . Hauler Manifests 1 | . 1 . . . Registered Components 1 | . 1 . . . Derelict Proto ID Bank 1 | . . . 1 . Fabricator Hacks . | . . . . . Repair Station Hacks . | . . . . . Recycling Unit Hacks . | . . . . . Scanalyzer . | . . . . . Garrison Access Hacks . | . . . . . Unauthorized Hacks 3 | . 3 . . . Terminals 3 | . 3 . . . Track 1 | . 1 . . . Botnet 2 | . 2 . . . Fabricators . | . . . . . Repair Stations . | . . . . . Recycling Units . | . . . . . Scanalyzers . | . . . . . Garrison Access . | . . . . . Data Cores Recovered . | . . . . . Used . | . . . . . Hacking Detections 5 | . 5 . . . Full Trace Events 2 | . 2 . . . Feedback Events . | . . . . . Feedback Blocked . | . . . . . Robot Schematics Acquired . | . . . . . Robots Built . | . . . . . Authchips . | . . . . . Time . | . . . . . Total Robot Build Rating . | . . . . . Part Schematics Acquired . | . . . . . Parts Built . | . . . . . Authchips . | . . . . . Time . | . . . . . Total Part Build Rating . | . . . . . Parts Repaired . | . . . . . Time . | . . . . . Parts Recycled . | . . . . . Recycled Matter . | . . . . . Retrieved Matter . | . . . . . Retrieved Components . | . . . . . Parts Scanalyzed . | . . . . . Part Schematics Acquired . | . . . . . Parts Damaged . | . . . . . Bothacking | -11 -10 -10 -10 -9 ------------ Run | Yrd Mat Min Exi Min Used RIF Installer . | . . . . . Robots Hacked . | . . . . . Non-combat . | . . . . . Combat . | . . . . . Robot Hacks Applied . | . . . . . Relay Couplers Released . | . . . . . Fabnet Peak Effective % . | . . . . . Robots Rewired . | . . . . . Allies Hacked . | . . . . . Hacks Repelled . | . . . . . Allies | -11 -10 -10 -10 -9 -------- Run | Yrd Mat Min Exi Min Total Allies 4 | . . . . 4 Largest Group 4 | . . . . 4 Highest-Rated Group 71 | . . . . 71 Highest-Rated Ally 31 | . . . . 31 Total Orders 1 | . . 1 . . EXPLORE 1 | . . 1 . . Ally Attacks 13 | . . 1 . 12 Total Damage 82 | . . 5 . 77 Kills 4 | . . . . 4 Allies Corrupted . | . . . . . Allies Melted . | . . . . . Intel | -11 -10 -10 -10 -9 ------- Run | Yrd Mat Min Exi Min Robot Analysis Total 4 | . 4 . . . Derelict Logs Recovered 1 | . . 1 . . Drone Launches 1 | . . 1 . . Drone Recoveries 1 | . . 1 . . Exploration | -11 -10 -10 -10 -9 ------------- Run | Yrd Mat Min Exi Min Turns Passed 3878 | 135 1055 1270 943 475 Spaces Moved 1961 | 86 594 579 492 210 Core 3 | 3 . . . . Treads 14 | 14 . . . . Legs 1944 | 69 594 579 492 210 Wheels . | . . . . . Hover . | . . . . . Flight . | . . . . . Fastest Speed 50 | 50 120 190 190 190 Average Speed 176 | 124 156 190 190 190 Slowest Speed 190 | 160 190 190 190 190 Overloaded Moves . | . . . . . Propulsion Burnouts . | . . . . . Robots Hopped . | . . . . . Cave-ins Triggered . | . . . . . Exploration Rate (%) 65 | 4 95 99 89 38 Regions Visited 4 Branch Regions 3 Pre-discovered Areas 2 | . . 1 1 . Known Exits Taken . | . . . . . Unknown Exits Taken 4 | 1 1 1 1 . Scrap Searched 1 | . . 1 . . Spaces Dug . | . . . . . Terrain Destroyed 2 | 2 . . . . Melee . | . . . . . Projectile . | . . . . . AOE 2 | 2 . . . . Terrain Rammed . | . . . . . Walls Destroyed . | . . . . . Machines Disabled . | . . . . . Actions | -11 -10 -10 -10 -9 --------- Run | Yrd Mat Min Exi Min Total 2217 | 102 655 694 501 265 Wait 95 | . 14 57 1 23 Move 1957 | 85 593 578 491 210 Hop . | . . . . . Pick Up 21 | 1 7 7 2 4 Fast Attach 13 | 9 . 1 2 1 Attach 10 | . . 5 . 5 Detach 3 | 2 . 1 . . Swap 14 | . 5 6 . 3 Drop 18 | . 1 8 4 5 Fire 86 | 5 35 31 1 14 Melee . | . . . . . Ram . | . . . . . Kick . | . . . . . Crush . | . . . . . Escape Stasis . | . . . . . Rewire . | . . . . . Trap . | . . . . . Miscellaneous . | . . . . . Route ------- -11/Scrapyard -10/Materials (discovered 4 exits: [*Mat x3] / *Min) -10/Mines (discovered 4 exits: [*Mat x2] / *Exi / [*Sub]) -10/Exiles -9/Mines (discovered 1 exit: [*Mat]) History --------- Turn | Location | Event 8 | -11/Scrapyard | Discovered new exit (range 15) 136 | -11/Scrapyard | Entered Materials 313 | -10/Materials | Build established: Mutant 411 | -10/Materials | Discovered new exit (range 11) 482 | -10/Materials | Discovered new exit (range 9) 623 | -10/Materials | Discovered new exit (range 3) 824 | -10/Materials | Discovered new exit (range 10) 1191 | -10/Materials | Entered Mines 1561 | -10/Mines | YI-UF0 nonchalantly dropped a Grenade Launcher on the ground 1754 | -10/Mines | Learned location of Storage (-8) 1900 | -10/Mines | Learned Materials trap positions 1900 | -10/Mines | Discovered new exit (range 16) 2101 | -10/Mines | Discovered new exit (range 11) 2227 | -10/Mines | Found the Drone Emporium 2240 | -10/Mines | Found Prototype Device 2241 | -10/Mines | Identified Splice Drone Bay 2322 | -10/Mines | Discovered new exit (range 27) 2453 | -10/Mines | Deemed a non-threat by the Exiles lab entrance 2453 | -10/Mines | Discovered new exit (range 5) 2461 | -10/Mines | Entered Exiles 2511 | -10/Exiles | Met 8R-AWN 2543 | -10/Exiles | Met EX-HEX 2617 | -10/Exiles | Met EX-DEC 2638 | -10/Exiles | Learned location of Zion (-7) 2718 | -10/Exiles | Met EX-BIN 2746 | -10/Exiles | Aligned with FarCom system 2748 | -10/Exiles | Given EX-Vault access code 2792 | -10/Exiles | Opened EX-Vault 2804 | -10/Exiles | Found Gui. Plasma Cannon 2818 | -10/Exiles | Found Field Lobotomy Kit 2947 | -10/Exiles | Warned to stay clear of 0b10 Research branches 3086 | -10/Exiles | Visited The Gauntlet 3385 | -10/Exiles | Discovered new exit (range 12) 3404 | -10/Exiles | Left Exiles lab with Field Lobotomy Kit 3404 | -10/Exiles | Entered Mines 3565 | -9/Mines | Assisted by bots powering up and referring to "LRC-V3" 3659 | -9/Mines | Received a Mining Laser from a helpful Derelict 3750 | -9/Mines | Build established: Scavenger-Mutant 3787 | -9/Mines | Found a damaged Exp. Sensor Array with a note attached 3858 | -9/Mines | Assembled infested the area 3862 | -9/Mines | Core integrity fell below 50% 3863 | -9/Mines | Assisted by a Guerilla fighting off Assembled 3865 | -9/Mines | Discovered new exit (range 15) 3872 | -9/Mines | Core integrity fell below 20% 3879 | -9/Mines | Destroyed by D-53 Grenadier with Mini Grenade Launcher Last Messages --------------- 03863_ Y5-CYK(h): "I'll hold them off! Go on ahead or try to find another way!" 03863_ HV Slug penetrates D-53 Grenadier. 03863_ D-53 Grenadier knocked back. 03863_ HV Slug penetrates D-53 Grenadier. 03863_ K-01 Serf collects debris. 03865_ K-01 Serf destroyed. 03865_ T7-7DN(g) destroyed. 03865_ Trooper 2a destroyed. 03865_ Trooper 2b destroyed. 03865_ EXIT=FOUND 03866_ U-05 Engineer lays Concrete. 03867_ Y5-CYK(h) destroyed. 03867_ U-05 Engineer destroyed. 03869_ Aluminum Leg destroyed. 03871_ EM Pulse Gun destroyed. 03873_ Aluminum Leg destroyed. 03873_ Heat Sink destroyed. 03875_ Aluminum Leg destroyed. 03878_ The unstable cave ceiling collapses. Map ----- +----------------------------------------------------+ | | | | | | | ?????????????????????????????????????????????????? | | ?????????????????????????????????????????????????? | | ?????????????????????????????????????????????????? | | ???????????????????????????????????????####??????? | | ??????????????????????????????????????## #####??? | | ????????????????????????????????####### ##?? | | ?????????????????????????####???# #?? | | ????????????????????????## ##??# #?? | | ???????????????????????## #### ####### ! #### | | ???????????????????????# #?????## ##### | | ???????????????????????# #######??????# ##### # | | ??????????????# ???????# ##???????????# # | | ?????????????? ??????# ###?????????####### # | | ?????????????#